bitfinex/quotes_SOLUSD_20250315
["timestamp","ask_amount","ask_price","bid_price","bid_amount"]
[1742074626826,1.5232,136.52,136.5,0.14216157]
[1742074627026,1.5232,136.52,136.51,0.14216157]
[1742074633341,1.5532,136.52,136.51,0.14216157]
[1742074633728,0.03,136.52,136.51,0.14216157]
[1742074635725,0.03,136.52,136.51,37.47590499]
[1742074636136,0.03,136.52,136.51,43.73590499]
[1742074650147,0.03,136.56,136.53,0.14216157]
[1742074650348,0.03,136.56,136.55,30.15050499]
[1742074650744,0.03,136.56,136.55,18.933972]
[1742074652059,1.6389,136.56,136.55,18.933972]
[1742074653667,1.6389,136.56,136.55,18.64964886]
[1742074655461,20.17823299,136.56,136.51,18.79181043]
[1742074655652,11.21653299,136.54,136.51,18.79181043]
[1742074656051,11.21653299,136.55,136.51,30.00834342]
[1742074656767,24.55423299,136.54,136.51,18.64964886]
[1742074657692,24.55423299,136.54,136.52,0.063]
[1742074658872,6.0139,136.54,136.52,0.063]
[1742074659489,13.3378,136.54,136.52,0.063]
[1742074660987,24.55433299,136.54,136.52,0.063]
[1742074661479,12.74753299,136.53,136.52,0.063]
[1742074663071,20.07183299,136.53,136.52,0.063]
[1742074664072,108.52540669,136.53,136.52,0.063]
[1742074664271,20.0,136.5,136.46,18.71264886]
[1742074664477,17.33393299,136.49,136.46,18.71264886]
[1742074664802,11.21653299,136.48,136.46,0.063]
[1742074664983,11.21653299,136.47,136.46,0.063]
[1742074666193,11.21653299,136.47,136.39,11.21653299]
[1742074666194,12.59079026,136.47,136.39,11.21653299]
[1742074666390,12.59079026,136.47,136.39,0.14216157]
[1742074666391,11.21653299,136.42,136.39,0.14216157]
[1742074666596,12.74753299,136.42,136.38,18.79181043]
[1742074666801,11.21653299,136.4,136.37,0.063]
[1742074667003,11.21653299,136.41,136.37,0.063]
[1742074667205,11.21653299,136.41,136.37,0.20516157]
[1742074667504,11.21653299,136.41,136.37,18.85481043]
[1742074668102,18.54733299,136.41,136.37,18.85481043]
[1742074668295,11.21653299,136.4,136.37,18.85481043]
[1742074668683,11.21653299,136.41,136.37,18.85481043]
[1742074669707,11.21653299,136.41,136.37,30.07134342]
[1742074669901,12.74753299,136.42,136.37,37.40424342]
[1742074674007,20.07783299,136.42,136.37,37.40424342]
[1742074674208,11.21653299,136.41,136.37,37.40424342]
[1742074674413,11.21653299,136.41,136.37,26.18771043]
[1742074675607,20.07783299,136.42,136.37,26.18771043]
[1742074677816,11.21653299,136.41,136.37,26.18771043]
[1742074678415,11.21653299,136.41,136.37,18.85481043]
[1742074678615,11.21653299,136.41,136.37,26.18761043]
[1742074679298,20.07783299,136.42,136.37,26.18761043]
[1742074679612,8.8613,136.42,136.37,26.18761043]
[1742074679914,20.07783299,136.42,136.37,26.18761043]
[1742074683915,20.07783299,136.42,136.37,18.85481043]
[1742074684501,11.21653299,136.41,136.37,26.18771043]
[1742074686006,8.8613,136.42,136.37,26.18771043]
[1742074686007,20.07783299,136.42,136.37,26.18771043]
[1742074691027,8.8613,136.42,136.37,26.18771043]
[1742074696430,20.07783299,136.42,136.37,26.18771043]
[1742074697425,11.21653299,136.41,136.37,26.18771043]
[1742074697601,20.07783299,136.42,136.37,26.18771043]
[1742074698205,11.21653299,136.41,136.37,26.18771043]
[1742074698402,20.07783299,136.42,136.37,26.18771043]
[1742074699922,20.07783299,136.42,136.37,18.71264886]
[1742074700131,11.21653299,136.4,136.37,0.063]
[1742074701606,11.21653299,136.39,136.37,0.063]
[1742074701831,11.21653299,136.4,136.37,0.063]
[1742074702004,18.54813299,136.4,136.37,0.063]
[1742074704609,7.3319,136.39,136.37,0.063]
[1742074705332,18.54843299,136.39,136.37,0.063]
[1742074705631,7.3319,136.39,136.37,0.063]
[1742074705931,20.0,136.38,136.37,0.063]
[1742074707814,11.21653299,136.41,136.37,0.063]
[1742074709129,18.54783299,136.41,136.37,0.063]
[1742074714541,7.3313,136.41,136.37,0.063]
[1742074717969,11.21653299,136.39,136.37,0.063]
[1742074720168,18.54793299,136.4,136.37,0.063]
[1742074721568,7.3314,136.4,136.37,0.063]
[1742074721863,18.54793299,136.4,136.37,0.063]
[1742074724344,18.54733299,136.41,136.37,0.063]
[1742074733669,105.2429,136.43,136.39,18.64964886]
[1742074733670,80.8,136.43,136.39,18.64964886]
[1742074733863,20.0,136.4,136.39,18.64964886]
[1742074734063,80.8,136.43,136.39,0.14216157]
[1742074734260,8.0827,136.46,136.42,11.21653299]
[1742074734261,92.04653299,136.46,136.42,11.21653299]
[1742074734454,20.0,136.43,136.42,29.86618185]
[1742074734863,20.0,136.43,136.42,18.64964886]
[1742074735965,0.03,136.46,136.43,18.64964886]
[1742074736356,0.03,136.46,136.42,18.54683299]
[1742074738959,0.03,136.46,136.43,0.14216157]
[1742074739682,0.03,136.46,136.43,7.47156157]
[1742074740075,0.03,136.46,136.43,26.12121043]
[1742074740376,0.03,136.46,136.43,18.79181043]
[1742074740571,0.03,136.46,136.43,26.12131043]
[1742074747373,0.03,136.46,136.44,18.64964886]
[1742074750592,0.03,136.46,136.44,25.97874886]
[1742074752693,0.03,136.46,136.44,18.64964886]
[1742074753095,0.03,136.46,136.44,25.97874886]
[1742074753288,11.24653299,136.46,136.44,18.64964886]
[1742074756299,0.03,136.46,136.44,18.64964886]
[1742074756898,0.03,136.46,136.45,11.50085613]
[1742074757194,0.03,136.46,136.45,0.28432314]
[1742074758081,0.03,136.46,136.45,7.61292314]
[1742074758281,0.03,136.46,136.45,26.262572]
[1742074758490,0.03,136.46,136.45,37.47910499]
[1742074765589,0.03,136.46,136.45,82.34523695]
[1742074766683,0.03,136.46,136.45,37.47910499]
[1742074768296,0.03,136.46,136.45,82.34523695]
[1742074770207,11.21653299,136.54,136.47,0.28432314]
[1742074770415,20.0,136.51,136.5,18.64964886]
[1742074771195,20.0,136.52,136.5,37.47650499]
[1742074771405,20.0,136.51,136.5,26.259972]
[1742074771596,11.21653299,136.54,136.5,26.259972]
[1742074771798,20.0,136.51,136.5,26.259972]
[1742074772528,11.21653299,136.54,136.5,26.259972]
[1742074773096,107.26203299,136.55,136.51,0.28432314]
[1742074773300,11.24653299,136.56,136.53,0.28432314]
[1742074773538,0.03,136.56,136.53,0.28432314]
[1742074774316,0.03,136.56,136.54,25.97334886]
[1742074774918,0.03,136.56,136.54,18.64964886]
[1742074775225,0.03,136.56,136.55,0.28432314]
[1742074777434,0.03,136.56,136.55,30.15050499]
[1742074778018,0.03,136.56,136.55,37.47380499]
[1742074778819,0.5813,136.59,136.57,0.28432314]
[1742074779018,21.04735459,136.6,136.57,0.28432314]
[1742074779420,21.04735459,136.6,136.57,0.14216157]
[1742074779719,13.72655459,136.6,136.57,0.28432314]
[1742074779926,13.72655459,136.6,136.57,18.933972]
[1742074780621,2.5100216,136.6,136.57,18.933972]
[1742074782425,13.72655459,136.6,136.57,18.933972]
[1742074782627,2.5100216,136.6,136.57,18.933972]
[1742074783243,2.5100216,136.6,136.57,37.47270499]
[1742074783416,2.5100216,136.6,136.59,18.933972]
[1742074784523,2.5100216,136.6,136.59,37.47160499]
[1742074784725,2.5100216,136.6,136.59,82.33773695]
[1742074785244,2.5100216,136.6,136.59,91.63918115]
[1742074785620,80.8,136.7,136.63,8.28082314]
[1742074785943,11.55320934,136.71,136.69,11.21653299]
[1742074786138,11.55320934,136.71,136.7,11.50085613]
[1742074786343,11.55320934,136.71,136.7,82.33183695]
[1742074786736,11.41110934,136.71,136.7,82.33183695]
[1742074786938,59.64681995,136.72,136.71,18.933972]
[1742074787243,59.64681995,136.72,136.71,38.14700499]
[1742074787419,23.10641868,136.72,136.71,38.14700499]
[1742074787627,92.42567475,136.76,136.73,38.933972]
[1742074787936,92.42567475,136.76,136.73,95.01663695]
[1742074788135,92.42567475,136.76,136.73,102.33023695]
[1742074788646,92.42567475,136.76,136.73,185.13023695]
[1742074788843,92.42567475,136.76,136.75,56.36698809]
[1742074789348,92.42567475,136.76,136.75,75.01663695]
[1742074790150,92.42567475,136.76,136.75,0.28432314]
[1742074790755,92.42567475,136.76,136.73,11.21653299]
[1742074790934,11.21653299,136.74,136.67,11.21653299]
[1742074791138,11.21653299,136.71,136.66,11.21653299]
[1742074791453,11.21653299,136.72,136.67,30.15050499]
[1742074791746,11.21653299,136.71,136.67,0.28432314]
[1742074792052,11.21653299,136.7,136.67,0.14216157]
[1742074792243,17.43882634,136.7,136.66,0.28432314]
[1742074792662,17.43882634,136.7,136.66,17.72314948]
[1742074792867,17.43882634,136.71,136.66,17.72314948]
[1742074793235,17.43882634,136.71,136.66,17.58098791]
[1742074793531,17.43882634,136.71,136.67,0.14216157]
[1742074793858,17.43882634,136.69,136.65,0.28432314]
[1742074794055,17.43882634,136.69,136.65,17.72314948]
[1742074794363,17.43882634,136.69,136.65,17.58098791]
[1742074794664,17.43882634,136.69,136.65,0.14216157]
[1742074794835,17.43882634,136.67,136.63,0.14216157]
[1742074795040,23.66552634,136.68,136.63,0.14216157]
[1742074795235,17.43882634,136.67,136.62,17.72314948]
[1742074795439,17.43882634,136.67,136.63,17.43882634]
[1742074795738,17.43882634,136.67,136.62,17.72314948]
[1742074795944,17.43882634,136.67,136.62,0.14216157]
[1742074796135,24.75622634,136.66,136.61,17.43882634]
[1742074796458,24.75622634,136.66,136.62,0.14216157]
[1742074796851,24.75622634,136.66,136.62,17.58098791]
[1742074797059,7.3174,136.66,136.62,17.43882634]
[1742074797359,7.3174,136.66,136.61,0.14216157]
[1742074797360,24.75622634,136.66,136.61,0.14216157]
[1742074797553,17.43882634,136.65,136.61,0.14216157]
[1742074798055,7.3185,136.64,136.6,0.14216157]
[1742074798257,24.75732634,136.64,136.6,0.14216157]
[1742074798957,17.43882634,136.63,136.6,0.14216157]
[1742074799158,17.43882634,136.63,136.59,17.43882634]
[1742074799355,17.43882634,136.63,136.58,17.58098791]
[1742074799748,17.43882634,136.62,136.58,17.58098791]
[1742074800063,17.43882634,136.63,136.58,17.58098791]
[1742074800258,17.43882634,136.61,136.56,0.28432314]
[1742074800459,17.43882634,136.6,136.56,0.28432314]
[1742074800760,17.43882634,136.59,136.55,17.43882634]
[1742074801062,17.43882634,136.6,136.56,17.58098791]
[1742074801355,17.43882634,136.59,136.55,17.43882634]
[1742074801552,17.43882634,136.58,136.55,0.14216157]
[1742074801962,20.0,136.58,136.55,0.14216157]
[1742074802134,44.76092634,136.58,136.55,0.14216157]
[1742074802339,27.3221,136.58,136.55,0.14216157]
[1742074802550,27.3221,136.58,136.55,17.43882634]
[1742074802951,17.43882634,136.57,136.52,17.72314948]
[1742074803462,44.76092634,136.58,136.53,17.43882634]
[1742074803636,44.76092634,136.58,136.54,17.43882634]
[1742074803842,24.76092634,136.58,136.52,17.72314948]
[1742074804361,17.43882634,136.57,136.52,17.58098791]
[1742074804559,17.43882634,136.56,136.52,0.14216157]
[1742074805139,17.43882634,136.56,136.53,102.54734404]
[1742074805339,17.43882634,136.55,136.53,87.61720911]
[1742074806765,24.76252634,136.55,136.53,87.61720911]
[1742074807147,24.76252634,136.55,136.5,17.43882634]
[1742074809669,24.76172634,136.56,136.51,17.43882634]
[1742074809963,17.43882634,136.55,136.49,0.14216157]
[1742074810151,17.43882634,136.53,136.47,17.72314948]
[1742074810474,17.43882634,136.51,136.47,0.14216157]
[1742074810676,17.43882634,136.5,136.47,0.14216157]
[1742074810971,17.43882634,136.5,136.46,17.50182634]
[1742074811475,17.43882634,136.49,136.46,0.063]
[1742074811767,24.76532634,136.49,136.46,0.063]
[1742074811963,17.43882634,136.48,136.46,0.063]
[1742074812164,17.43882634,136.47,136.46,0.063]
[1742074813344,24.76642634,136.47,136.46,0.063]
[1742074813549,25.59452634,136.47,136.46,0.063]
[1742074814566,8.1557,136.47,136.46,0.063]
[1742074821573,20.0,136.48,136.46,0.063]
[1742074821874,17.43882634,136.5,136.46,0.063]
[1742074822077,20.0,136.48,136.46,0.063]
[1742074825567,88.9557,136.51,136.47,24.48895627]
[1742074825968,88.9557,136.51,136.48,24.48895627]
[1742074826167,88.9557,136.51,136.47,24.48895627]
[1742074826568,88.9557,136.51,136.48,7.327]
[1742074827077,113.44465627,136.51,136.48,7.327]
[1742074827282,1.5428,136.51,136.48,7.327]
[1742074829379,1.5428,136.51,136.48,24.48895627]
[1742074829572,1.5428,136.51,136.47,24.48895627]
[1742074830360,1.5428,136.51,136.48,7.327]
[1742074830560,24.48895627,136.52,136.48,7.327]
[1742074833179,30.58245627,136.54,136.49,24.48895627]
[1742074834381,6.0935,136.54,136.49,24.48895627]
[1742074834574,30.58245627,136.54,136.5,7.326]
[1742074836083,30.58245627,136.54,136.49,7.46866157]
[1742074836691,24.48895627,136.53,136.48,7.3269]
[1742074838175,24.48895627,136.52,136.48,7.3269]
[1742074838372,31.81335627,136.53,136.48,7.3269]
[1742074838990,7.3244,136.53,136.48,7.3269]
[1742074839396,37.90645627,136.54,136.48,7.3269]
[1742074839800,39.28008699,136.54,136.48,7.3269]
[1742074840099,24.48895627,136.53,136.48,7.3269]
[1742074840395,15.66547607,136.53,136.48,7.3269]
[1742074840789,14.79113072,136.54,136.48,7.3269]
[1742074841085,30.45660679,136.54,136.48,7.3269]
[1742074841289,29.08297607,136.54,136.48,7.3269]
[1742074842182,6.0935,136.54,136.49,0.14216157]
[1742074842487,6.0935,136.54,136.5,15.66547607]
[1742074842672,6.0935,136.54,136.51,15.66547607]
[1742074843388,138.7843,136.55,136.5,15.80763764]
[1742074844394,138.7843,136.55,136.51,7.3254]
[1742074845279,154.44977607,136.55,136.51,7.3254]
[1742074845782,138.7843,136.55,136.51,7.3254]
[1742074846886,138.7843,136.55,136.51,22.99087607]
[1742074847785,1.5843,136.55,136.51,22.99087607]
[1742074848679,1.5843,136.55,136.51,7.3254]
[1742074852287,1.5843,136.55,136.51,0.14216157]
[1742074853002,1.5843,136.55,136.51,7.46726157]
[1742074856896,8.9076,136.55,136.49,7.3265]
[1742074857501,8.9076,136.55,136.5,0.14216157]
[1742074857997,8.9076,136.55,136.5,7.61032314]
[1742074857998,1.5843,136.55,136.5,7.61032314]
[1742074858300,1.5843,136.55,136.5,23.27579921]
[1742074859498,1.5843,136.55,136.5,7.61032314]
[1742074861797,88.1229,136.56,136.5,7.61032314]
[1742074864282,88.1229,136.56,136.5,23.26652621]
[1742074866705,80.8,136.56,136.5,23.26652621]
[1742074867203,88.1227,136.56,136.5,23.26652621]
[1742074867707,80.8,136.56,136.5,23.26652621]
[1742074868905,88.1228,136.56,136.5,23.26652621]
[1742074870508,88.1228,136.56,136.52,7.3249]
[1742074871010,80.8,136.56,136.52,7.3249]
[1742074872513,80.8,136.56,136.51,7.3254]
[1742074873708,80.8,136.56,136.51,22.98160307]
[1742074882620,80.8,136.56,136.51,7.3254]
[1742074882799,80.8,136.56,136.51,22.98160307]
[1742074884723,88.1229,136.56,136.51,22.98160307]
[1742074890727,28.99550307,136.57,136.52,0.14216157]
[1742074892235,13.3393,136.57,136.52,7.46706157]
[1742074892423,28.99550307,136.57,136.52,7.46706157]
[1742074895130,28.99550307,136.57,136.51,7.3254]
[1742074895511,15.65620307,136.56,136.51,7.3254]
[1742074895818,15.65620307,136.56,136.51,22.98160307]
[1742074896007,28.99550307,136.57,136.51,22.98160307]
[1742074896530,28.99550307,136.57,136.51,7.3254]
[1742074896703,28.99550307,136.57,136.52,0.063]
[1742074898631,28.99550307,136.57,136.52,0.20516157]
[1742074898933,28.99550307,136.57,136.52,26.17931043]
[1742074904139,28.99550307,136.57,136.52,41.8355135]
[1742074905037,28.99550307,136.57,136.52,26.17931043]
[1742074905417,13.3393,136.57,136.52,26.17931043]
[1742074910531,8.9877,136.58,136.54,18.79181043]
[1742074912248,24.64390307,136.58,136.54,18.79181043]
[1742074912446,8.9877,136.58,136.54,18.79181043]
[1742074912928,1.6656,136.58,136.54,26.11551043]
[1742074916352,17.32180307,136.58,136.54,26.11551043]
[1742074916529,24.64350307,136.58,136.54,26.11551043]
[1742074917453,24.64350307,136.58,136.54,18.79181043]
[1742074917639,8.9873,136.58,136.54,18.79181043]
[1742074918452,1.6656,136.58,136.54,26.11551043]
[1742074919452,8.9873,136.58,136.54,26.11551043]
[1742074919656,24.64350307,136.58,136.54,26.11551043]
[1742074920257,22.97790307,136.58,136.54,26.11551043]
[1742074921552,7.3217,136.58,136.54,26.11551043]
[1742074921731,23.00730307,136.59,136.54,26.11551043]
[1742074921933,23.00730307,136.59,136.54,41.7717135]
[1742074924039,22.97820307,136.58,136.54,18.79181043]
[1742074924348,7.322,136.58,136.54,18.79181043]
[1742074924736,23.00750307,136.59,136.54,41.7717135]
[1742074925458,0.03,136.59,136.56,15.79836464]
[1742074926049,0.03,136.59,136.57,15.65620307]
[1742074926455,0.03,136.59,136.57,18.64964886]
[1742074926755,0.03,136.59,136.58,15.94052621]
[1742074926955,0.03,136.59,136.58,34.4480135]
[1742074928333,0.03,136.59,136.58,41.7697135]
[1742074928945,0.03,136.59,136.58,41.91187507]
[1742074935064,0.03,136.59,136.58,34.59017507]
[1742074935266,0.03,136.59,136.57,0.28432314]
[1742074935463,0.03,136.59,136.58,15.94052621]
[1742074936862,0.03,136.59,136.58,23.26222621]
[1742074937773,0.03,136.59,136.58,41.91187507]
[1742074946363,6.4757,136.64,136.59,18.933972]
[1742074946556,1.6226,136.66,136.62,15.65620307]
[1742074947268,1.6226,136.66,136.63,7.319]
[1742074948973,1.6226,136.66,136.63,22.97520307]
[1742074954677,1.6226,136.66,136.64,15.65620307]
[1742074955264,1.6226,136.66,136.64,22.97440307]
[1742074955661,6.5283,136.68,136.64,22.97440307]
[1742074955869,6.5283,136.68,136.65,34.4480135]
[1742074957185,6.5283,136.68,136.65,41.7658135]
[1742074960690,6.5283,136.68,136.63,18.2975]
[1742074960886,6.5283,136.68,136.64,34.30585193]
[1742074961091,6.5283,136.68,136.65,0.14216157]
[1742074961295,6.5283,136.68,136.65,15.79836464]
[1742074961990,1.5719,136.69,136.66,18.64964886]
[1742074962168,80.8,136.71,136.67,0.14216157]
[1742074962370,175.53680307,136.72,136.67,0.14216157]
[1742074962587,175.53680307,136.72,136.67,15.79836464]
[1742074963090,167.95680307,136.72,136.67,0.14216157]
[1742074963288,167.95680307,136.72,136.67,18.79181043]
[1742074967799,22.97120307,136.71,136.67,18.79181043]
[1742074970584,7.315,136.71,136.67,18.79181043]
[1742074970789,22.97120307,136.71,136.67,18.79181043]
[1742074971908,22.97120307,136.71,136.67,0.14216157]
[1742074972408,22.97120307,136.71,136.66,22.97320307]
[1742074972586,22.97120307,136.71,136.66,18.64964886]
[1742074973797,15.65620307,136.7,136.65,0.14216157]
[1742074973998,7.315,136.71,136.63,18.64964886]
[1742074973999,15.65620307,136.68,136.63,34.30585193]
[1742074974300,15.65620307,136.66,136.62,18.79181043]
[1742074974605,15.65620307,136.66,136.62,0.14216157]
[1742074974803,15.65620307,136.66,136.62,18.79181043]
[1742074975206,22.97370307,136.66,136.62,18.79181043]
[1742074976016,15.65620307,136.65,136.6,22.97680307]
[1742074976383,22.97370307,136.66,136.6,22.97680307]
[1742074976589,22.97370307,136.66,136.61,15.65620307]
[1742074977506,22.97370307,136.66,136.61,22.97620307]
[1742074978007,15.65620307,136.66,136.61,22.97620307]
[1742074978211,15.65620307,136.66,136.6,41.62635193]
[1742074978787,15.65620307,136.66,136.61,15.65620307]
[1742074978983,17.02855392,136.66,136.61,15.65620307]
[1742074979189,24.34635392,136.66,136.6,41.62635193]
[1742074979602,22.97400307,136.66,136.61,15.65620307]
[1742074979804,248.66460307,136.67,136.61,15.65620307]
[1742074981011,241.34760307,136.67,136.62,18.79181043]
[1742074981184,225.6914,136.67,136.62,15.79836464]
[1742074981389,225.6914,136.67,136.62,23.11766464]
[1742074981590,1.5674,136.67,136.63,15.65620307]
[1742074983118,1.5674,136.67,136.63,22.97470307]
[1742074983314,17.22360307,136.67,136.61,15.65620307]
[1742074983498,24.54050307,136.67,136.61,15.65620307]
[1742074983697,17.22360307,136.67,136.61,22.97600307]
[1742074983908,1.5674,136.67,136.62,15.65620307]
[1742074984497,1.5974,136.67,136.62,15.65620307]
[1742074984812,8.9144,136.67,136.62,22.97550307]
[1742074984997,1.5974,136.67,136.62,22.97550307]
[1742074986521,0.03,136.67,136.65,20.0]
[1742074986701,0.03,136.67,136.66,34.59017507]
[1742074987028,0.03,136.67,136.66,41.90757507]
[1742074990235,7.6914,136.72,136.67,0.14216157]
[1742074990435,7.6914,136.72,136.68,15.65620307]
[1742074991539,1.6324,136.78,136.7,0.14216157]
[1742074991750,1.6324,136.78,136.73,15.65620307]
[1742074993245,1.6324,136.78,136.72,15.65620307]
[1742074993539,17.28860307,136.78,136.72,15.65620307]
[1742074993844,17.28860307,136.78,136.74,0.14216157]
[1742074994139,17.28860307,136.78,136.74,18.79181043]
[1742074994523,17.28860307,136.78,136.73,7.3136]
[1742074994730,15.65620307,136.77,136.73,7.3136]
[1742074995133,15.65620307,136.76,136.73,7.3136]
[1742074996443,15.65620307,136.76,136.72,7.314]
[1742074998437,15.68620307,136.77,136.72,7.314]
[1742074999055,15.68620307,136.77,136.73,0.14216157]
[1742074999242,15.68620307,136.77,136.72,7.314]
[1742075000153,22.99780307,136.77,136.72,7.314]
[1742075000454,15.68620307,136.77,136.72,7.314]
[1742075002452,15.65620307,136.75,136.71,18.64964886]
[1742075003231,15.65620307,136.75,136.7,7.45716157]
[1742075003558,15.65620307,136.72,136.64,0.14216157]
[1742075003754,15.65620307,136.72,136.66,15.65620307]
[1742075003941,15.65620307,136.71,136.65,34.4480135]
[1742075004139,15.65620307,136.7,136.65,34.4480135]
[1742075004355,22.97160307,136.7,136.64,22.97450307]
[1742075004541,22.97160307,136.7,136.65,18.79181043]
[1742075004741,22.97160307,136.7,136.65,34.4480135]
[1742075004938,22.97160307,136.7,136.65,18.79181043]
[1742075006072,7.3154,136.7,136.65,34.4480135]
[1742075006355,7.3154,136.7,136.65,41.7659135]
[1742075009644,7.3154,136.7,136.65,41.8289135]
[1742075010272,22.97110307,136.71,136.65,41.8289135]
[1742075011660,15.65620307,136.7,136.65,26.17271043]
[1742075012055,22.97170307,136.7,136.65,26.17271043]
[1742075014460,15.65620307,136.68,136.65,18.71264886]
[1742075014661,15.65620307,136.68,136.65,0.063]
[1742075014867,15.65620307,136.67,136.65,0.063]
[1742075015375,15.65620307,136.66,136.65,0.063]
[1742075016464,22.97360307,136.66,136.65,0.063]
[1742075016664,7.3174,136.66,136.65,0.063]
[1742075020476,22.97360307,136.66,136.65,0.063]
[1742075022283,24.34617399,136.66,136.65,0.063]
[1742075023178,105.14617399,136.66,136.65,0.063]
[1742075025381,112.18617399,136.66,136.65,0.063]
[1742075025776,134.20617399,136.66,136.65,0.063]
[1742075025981,20.0,136.6,136.59,0.063]
[1742075026170,44.04935124,136.6,136.59,0.063]
[1742075027377,20.0,136.56,136.53,0.063]
[1742075027584,15.65620307,136.57,136.53,0.063]
[1742075027974,37.02970255,136.56,136.53,0.063]
[1742075028594,45.20730255,136.56,136.53,0.063]
[1742075028885,22.65620307,136.55,136.53,0.063]
[1742075029889,7.0,136.55,136.53,0.063]
[1742075031798,14.3233,136.55,136.53,0.063]
[1742075032501,7.0,136.55,136.53,0.063]
[1742075034169,22.65620307,136.55,136.53,0.063]
[1742075037186,7.0,136.55,136.53,0.063]
[1742075037993,29.97950307,136.55,136.53,0.063]
[1742075039875,15.65620307,136.54,136.53,0.063]
[1742075040484,29.97950307,136.55,136.53,0.063]
[1742075040990,7.0,136.55,136.53,0.063]
[1742075041298,43.83380307,136.56,136.53,0.063]
[1742075041885,28.1776,136.56,136.53,0.063]
[1742075044384,43.83380307,136.56,136.53,0.063]
[1742075046283,37.18430307,136.56,136.53,0.063]
[1742075050501,15.65620307,136.55,136.53,0.063]
[1742075050879,37.18430307,136.56,136.53,0.063]
[1742075051084,35.65620307,136.56,136.53,0.063]
[1742075051504,20.0,136.56,136.53,0.063]
[1742075051707,15.65620307,136.56,136.53,0.063]
[1742075056306,7.3224,136.57,136.53,0.063]
[1742075056995,20.0,136.55,136.53,0.063]
[1742075065821,35.65620307,136.55,136.53,0.063]
[1742075066921,15.65620307,136.54,136.53,0.063]
[1742075067921,22.98000307,136.54,136.53,0.063]
[1742075070718,240.98000307,136.54,136.53,0.063]
[1742075071724,247.11510307,136.54,136.53,0.063]
[1742075076312,20.0,136.49,136.47,0.063]
[1742075076513,18.56992743,136.48,136.47,0.063]
[1742075078340,25.89692743,136.48,136.47,0.063]
[1742075079639,0.14216157,136.47,136.46,0.063]
[1742075079829,15.79836464,136.47,136.45,0.063]
[1742075080017,6.61586157,136.45,136.44,0.063]
[1742075080334,22.27206464,136.45,136.44,0.063]
[1742075081239,23.64692142,136.45,136.44,0.063]
[1742075081933,30.97552142,136.45,136.44,0.063]
[1742075082838,31.11768299,136.45,136.44,0.063]
[1742075083036,112.39214413,136.45,136.43,0.063]
[1742075083334,112.39214413,136.45,136.39,0.063]
[1742075083335,28.23606157,136.41,136.39,0.063]
[1742075083646,45.76765518,136.41,136.39,0.063]
[1742075085021,52.59845518,136.41,136.39,0.063]
[1742075085217,52.45629361,136.41,136.39,0.063]
[1742075086237,45.12549361,136.41,136.39,0.063]
[1742075086744,38.65179361,136.41,136.39,0.063]
[1742075086943,18.65179361,136.41,136.39,0.063]
[1742075089149,37.03159361,136.41,136.39,0.063]
[1742075089445,21.37539054,136.41,136.39,0.063]
[1742075090440,37.03159361,136.41,136.39,0.063]
[1742075094041,174.23159361,136.41,136.39,0.063]
[1742075094241,172.85620307,136.41,136.39,0.063]
[1742075101838,180.18700307,136.41,136.39,0.063]
[1742075102245,172.85620307,136.41,136.39,0.063]
[1742075104926,0.03,136.43,136.41,0.14216157]
[1742075105133,0.03,136.43,136.42,15.79836464]
[1742075106048,0.03,136.43,136.42,34.59017507]
[1742075106429,0.0001,136.43,136.42,41.92047507]
[1742075109954,0.0001,136.43,136.42,50.03097507]
[1742075110250,15.65620307,136.52,136.43,18.933972]
[1742075110456,82.17387331,136.54,136.47,15.65620307]
[1742075110457,15.65620307,136.53,136.47,15.65620307]
[1742075112257,15.65620307,136.53,136.48,7.327]
[1742075113558,15.65620307,136.52,136.48,7.327]
[1742075114347,15.65620307,136.52,136.47,7.3276]
[1742075114744,15.65620307,136.5,136.46,0.14216157]
[1742075115046,15.65620307,136.47,136.42,22.21380307]
[1742075115239,15.65620307,136.46,136.42,0.14216157]
[1742075115441,15.65620307,136.46,136.42,18.79181043]
[1742075115656,15.65620307,136.46,136.42,0.14216157]
[1742075115949,15.65620307,136.46,136.4,23.05050307]
[1742075116156,15.65620307,136.46,136.41,18.64964886]
[1742075116356,15.65620307,136.46,136.41,34.30585193]
[1742075116541,17.03065165,136.47,136.41,34.30585193]